bitfinex/quotes_BTCUSD_20251007
["timestamp","ask_amount","ask_price","bid_price","bid_amount"]
[1759866148407,1.46669676,121580.0,121570.0,0.00685911]
[1759866148610,1.69933676,121580.0,121570.0,0.17137338]
[1759866149463,0.47969074,121580.0,121570.0,0.17137338]
[1759866149679,1.53483602,121580.0,121570.0,0.17137338]
[1759866150419,1.69933676,121580.0,121570.0,0.17137338]
[1759866150684,0.47969074,121580.0,121570.0,0.17137338]
[1759866150916,1.69933676,121580.0,121570.0,0.17137338]
[1759866151091,1.08948008,121580.0,121570.0,0.17137338]
[1759866151734,0.92501934,121580.0,121570.0,0.17137338]
[1759866151947,0.87632934,121580.0,121570.0,0.19450338]
[1759866152253,0.43104074,121580.0,121570.0,0.19450338]
[1759866152427,1.07560008,121580.0,121570.0,0.19450338]
[1759866152691,1.07560008,121580.0,121570.0,0.17137338]
[1759866154268,0.84292008,121580.0,121570.0,0.17137338]
[1759866154524,1.07560008,121580.0,121570.0,0.17137338]
[1759866155315,0.67841934,121580.0,121570.0,0.17137338]
[1759866155541,0.91109934,121580.0,121570.0,0.17137338]
[1759866155768,2.92518204,121580.0,121570.0,0.00685911]
[1759866155986,2.17866338,121580.0,121570.0,0.00685911]
[1759866156197,4.12082713,121580.0,121570.0,0.00685911]
[1759866156409,3.70388213,121580.0,121570.0,0.00685911]
[1759866156618,1.59358513,121580.0,121570.0,0.00585911]
[1759866156834,3.91455313,121580.0,121570.0,0.00585911]
[1759866157082,3.86698213,121580.0,121570.0,0.00585911]
[1759866157323,3.93986913,121580.0,121570.0,0.00585911]
[1759866157543,3.92693313,121580.0,121570.0,0.00585911]
[1759866157765,1.59458513,121580.0,121570.0,0.00585911]
[1759866157985,4.54963347,121580.0,121570.0,0.00585911]
[1759866158170,4.53537847,121580.0,121570.0,0.00585911]
[1759866158512,4.54783947,121580.0,121570.0,0.00585911]
[1759866158722,4.53331947,121580.0,121570.0,0.00585911]
[1759866158955,4.51985947,121580.0,121570.0,0.00585911]
[1759866159171,4.53521511,121580.0,121570.0,0.00585911]
[1759866159407,4.53522511,121580.0,121570.0,0.00585911]
[1759866159624,4.54798911,121580.0,121570.0,0.00585911]
[1759866159834,4.54724411,121580.0,121570.0,0.00585911]
[1759866160042,4.53522511,121580.0,121570.0,0.00585911]
[1759866160254,2.21973011,121580.0,121570.0,0.00585911]
[1759866160431,4.55044811,121580.0,121570.0,0.00585911]
[1759866160640,4.55150511,121580.0,121570.0,0.00585911]
[1759866160875,4.58627711,121580.0,121570.0,0.00585911]
[1759866161059,4.58654311,121580.0,121570.0,0.00585911]
[1759866161278,4.58672311,121580.0,121570.0,0.00585911]
[1759866161430,2.21973011,121580.0,121570.0,0.00585911]
[1759866161643,2.30529011,121580.0,121570.0,0.00585911]
[1759866161855,4.68880611,121580.0,121570.0,0.00585911]
[1759866162039,5.20330311,121580.0,121570.0,0.00585911]
[1759866162248,5.01155811,121580.0,121570.0,0.00585911]
[1759866162466,2.30529011,121580.0,121570.0,0.00585911]
[1759866162665,5.02223611,121580.0,121570.0,0.00585911]
[1759866162914,2.30529011,121580.0,121570.0,0.00585911]
[1759866163291,2.32300811,121580.0,121570.0,0.00585911]
[1759866163505,4.74818811,121580.0,121570.0,0.00585911]
[1759866163720,4.46439611,121580.0,121570.0,0.00585911]
[1759866163921,3.61373477,121580.0,121570.0,0.00585911]
[1759866164124,3.74395777,121580.0,121570.0,0.00585911]
[1759866164344,3.78342677,121580.0,121570.0,0.00585911]
[1759866164823,3.84462677,121580.0,121570.0,0.00585911]
[1759866165804,3.84392077,121580.0,121570.0,0.00585911]
[1759866166021,3.48827077,121580.0,121570.0,0.00585911]
[1759866166220,3.74502377,121580.0,121570.0,0.00585911]
[1759866166422,1.71321877,121580.0,121570.0,0.00585911]
[1759866166703,2.91316077,121580.0,121570.0,0.00585911]
[1759866166900,2.98286077,121580.0,121570.0,0.00585911]
[1759866167164,3.05599777,121580.0,121570.0,0.00585911]
[1759866167381,3.05710777,121580.0,121570.0,0.00585911]
[1759866167593,1.71321877,121580.0,121570.0,0.00585911]
[1759866167893,2.88465077,121580.0,121570.0,0.00585911]
[1759866168058,1.71325877,121580.0,121570.0,0.00585911]
[1759866168273,3.16963077,121580.0,121570.0,0.00585911]
[1759866168484,1.71325877,121580.0,121570.0,0.00585911]
[1759866168688,3.16971077,121580.0,121570.0,0.00585911]
[1759866168888,1.71325877,121580.0,121570.0,0.00585911]
[1759866169053,3.23508777,121580.0,121570.0,0.00585911]
[1759866169255,3.79975277,121580.0,121570.0,0.00585911]
[1759866169479,5.09950411,121580.0,121570.0,0.00585911]
[1759866169715,5.04373911,121580.0,121570.0,0.00585911]
[1759866169881,2.30533011,121580.0,121570.0,0.00585911]
[1759866170081,5.12540211,121580.0,121570.0,0.00585911]
[1759866170304,5.12680211,121580.0,121570.0,0.00585911]
[1759866170564,5.12680311,121580.0,121570.0,0.00585911]
[1759866170781,5.11485511,121580.0,121570.0,0.00585911]
[1759866170991,2.30533011,121580.0,121570.0,0.00585911]
[1759866171208,5.07769611,121580.0,121570.0,0.00585911]
[1759866171411,2.30533011,121580.0,121570.0,0.00585911]
[1759866171527,5.07769611,121580.0,121570.0,0.00585911]
[1759866171955,2.30533011,121580.0,121570.0,0.00585911]
[1759866172573,5.20981411,121580.0,121570.0,0.00585911]
[1759866172934,6.46692711,121580.0,121570.0,0.00585911]
[1759866173141,5.53368911,121580.0,121570.0,0.00585911]
[1759866173344,5.23717211,121580.0,121570.0,0.00585911]
[1759866173582,5.27115547,121580.0,121570.0,0.00585911]
[1759866173794,5.25904747,121580.0,121570.0,0.00585911]
[1759866173981,5.29247247,121580.0,121570.0,0.00585911]
[1759866174179,5.30463647,121580.0,121570.0,0.00585911]
[1759866174384,5.31204647,121580.0,121570.0,0.00585911]
[1759866174602,2.28997447,121580.0,121570.0,0.00585911]
[1759866174861,4.72195447,121580.0,121570.0,0.00585911]
[1759866175088,3.08459313,121580.0,121570.0,0.00585911]
[1759866175309,3.78813813,121580.0,121570.0,0.00585911]
[1759866175537,3.92681413,121580.0,121570.0,0.00585911]
[1759866175788,1.68014513,121580.0,121570.0,0.00585911]
[1759866175996,2.28993447,121580.0,121570.0,0.00585911]
[1759866176216,5.55358147,121580.0,121570.0,0.00585911]
[1759866176427,5.60589947,121580.0,121570.0,0.00585911]
[1759866176632,5.46286547,121580.0,121570.0,0.0211014]
[1759866176787,2.28993447,121580.0,121570.0,0.0211014]
[1759866176994,5.45875147,121580.0,121570.0,0.0211014]
[1759866177211,2.28993447,121580.0,121570.0,0.0211014]
[1759866177414,5.45874947,121580.0,121570.0,0.0211014]
[1759866177620,5.47092147,121580.0,121570.0,0.0211014]
[1759866177819,5.29194947,121580.0,121570.0,0.0211014]
[1759866178005,5.29161647,121580.0,121570.0,0.0211014]
[1759866178517,5.47058947,121580.0,121570.0,0.0211014]
[1759866178733,2.28993447,121580.0,121570.0,0.0211014]
[1759866178927,2.28993447,121580.0,121570.0,0.02110505]
[1759866179121,5.47046747,121580.0,121570.0,0.02110505]
[1759866179324,4.98770347,121580.0,121570.0,0.02110505]
[1759866179562,4.90210347,121580.0,121570.0,0.02110505]
[1759866179767,5.03266647,121580.0,121570.0,0.02110505]
[1759866179942,5.00057747,121580.0,121570.0,0.02110505]
[1759866180142,4.40422113,121580.0,121570.0,0.02110505]
[1759866180498,4.46079713,121580.0,121570.0,0.02110505]
[1759866180617,4.63967413,121580.0,121570.0,0.02110505]
[1759866180826,4.46070313,121580.0,121570.0,0.02110505]
[1759866181026,4.44020313,121580.0,121570.0,0.02110505]
[1759866181248,4.40526313,121580.0,121570.0,0.02110505]
[1759866181782,4.37980313,121580.0,121570.0,0.02110505]
[1759866181965,1.68014513,121580.0,121570.0,0.02110505]
[1759866182171,4.95456047,121580.0,121570.0,0.02110505]
[1759866182398,4.32239413,121580.0,121570.0,0.02110505]
[1759866182617,1.36190513,121580.0,121570.0,0.02110505]
[1759866182845,3.80521513,121580.0,121570.0,0.02110505]
[1759866183046,4.12626313,121580.0,121570.0,0.02110505]
[1759866183244,4.10040013,121580.0,121570.0,0.02110505]
[1759866183419,1.68014513,121580.0,121570.0,0.02110505]
[1759866183592,4.14700613,121580.0,121570.0,0.02110505]
[1759866183787,1.68014513,121580.0,121570.0,0.02110505]
[1759866183991,4.18308313,121580.0,121570.0,0.02110505]
[1759866184212,4.21847213,121580.0,121570.0,0.02110505]
[1759866184430,1.68014513,121580.0,121570.0,0.02110505]
[1759866184727,4.31015613,121580.0,121570.0,0.02110505]
[1759866185139,4.33004523,121580.0,121570.0,0.02110505]
[1759866185335,4.43312523,121580.0,121570.0,0.02110505]
[1759866185534,1.73724423,121580.0,121570.0,0.00585911]
[1759866185748,4.42114023,121580.0,121570.0,0.00585911]
[1759866185961,1.73724423,121580.0,121570.0,0.00585911]
[1759866186177,4.43380623,121580.0,121570.0,0.00585911]
[1759866186381,3.87233013,121580.0,121570.0,0.00585911]
[1759866186722,4.21498113,121580.0,121570.0,0.0211361]
[1759866186928,4.31340113,121580.0,121570.0,0.0211361]
[1759866187108,4.31568513,121580.0,121570.0,0.0211361]
[1759866187309,4.32755513,121580.0,121570.0,0.0211361]
[1759866187517,1.72953513,121580.0,121570.0,0.0211361]
[1759866187730,4.31452013,121580.0,121570.0,0.0211361]
[1759866187932,1.72953513,121580.0,121570.0,0.0211361]
[1759866188368,4.36311113,121580.0,121570.0,0.0211361]
[1759866188598,5.50569847,121580.0,121570.0,0.00585911]
[1759866188857,5.62555147,121580.0,121570.0,0.00585911]
[1759866189080,5.40866747,121580.0,121570.0,0.00585911]
[1759866189327,2.33932447,121580.0,121570.0,0.00585911]
[1759866189593,5.27561447,121580.0,121570.0,0.00585911]
[1759866189825,5.40570147,121580.0,121570.0,0.00585911]
[1759866190046,2.33932447,121580.0,121570.0,0.00585911]
[1759866190954,5.36073147,121580.0,121570.0,0.00585911]
[1759866191188,2.33932447,121580.0,121570.0,0.00585911]
[1759866191399,5.10825147,121580.0,121570.0,0.00585911]
[1759866191612,5.07466347,121580.0,121570.0,0.00585911]
[1759866191823,3.17455079,121580.0,121570.0,0.00585911]
[1759866192032,1.72953513,121580.0,121570.0,0.00585911]
[1759866192261,1.11974579,121580.0,121570.0,0.00585911]
[1759866192485,0.98033979,121580.0,121570.0,0.00585911]
[1759866192731,2.13738313,121580.0,121570.0,0.00585911]
[1759866192944,1.72953513,121580.0,121570.0,0.00585911]
[1759866193157,2.90670813,121580.0,121570.0,0.00585911]
[1759866193374,2.39668013,121580.0,121570.0,0.00585911]
[1759866193574,2.83936013,121580.0,121570.0,0.00585911]
[1759866193785,2.90056013,121580.0,121570.0,0.00585911]
[1759866193962,2.90593013,121580.0,121570.0,0.00585911]
[1759866194345,3.78005613,121580.0,121570.0,0.00585911]
[1759866194671,3.91212613,121580.0,121570.0,0.00585911]
[1759866194894,4.04730713,121580.0,121570.0,0.00585911]
[1759866195114,1.68014513,121580.0,121570.0,0.00585911]
[1759866195324,3.85812513,121580.0,121570.0,0.00585911]
[1759866196285,3.84128613,121580.0,121570.0,0.00585911]
[1759866196463,1.68014513,121580.0,121570.0,0.00585911]
[1759866196693,3.68268513,121580.0,121570.0,0.00585911]
[1759866196907,2.70213613,121580.0,121570.0,0.00585911]
[1759866197115,3.40796613,121580.0,121570.0,0.00585911]
[1759866197420,1.68014513,121580.0,121570.0,0.00585911]
[1759866197627,3.41796613,121580.0,121570.0,0.00585911]
[1759866197832,3.80154813,121580.0,121570.0,0.00585911]
[1759866198075,1.68014513,121580.0,121570.0,0.00585911]
[1759866198469,3.39169913,121580.0,121570.0,0.00585911]
[1759866198697,1.47807631,121580.0,121570.0,0.00585911]
[1759866198905,3.20066831,121580.0,121570.0,0.00585911]
[1759866199090,3.30291931,121580.0,121570.0,0.00585911]
[1759866199223,3.30330831,121580.0,121570.0,0.00585911]
[1759866199437,3.30267531,121580.0,121570.0,0.00585911]
[1759866199645,3.31844731,121580.0,121570.0,0.00585911]
[1759866199882,3.32034931,121580.0,121570.0,0.00585911]
[1759866200133,1.12904197,121580.0,121570.0,0.00585911]
[1759866200357,2.06036531,121580.0,121570.0,0.00585911]
[1759866200579,1.15599631,121580.0,121570.0,0.00585911]
[1759866200815,1.50068631,121580.0,121570.0,0.00585911]
[1759866201049,2.09217831,121580.0,121570.0,0.00585911]
[1759866201281,2.51750931,121580.0,121570.0,0.00585911]
[1759866201513,1.50068631,121580.0,121570.0,0.00585911]
[1759866201736,1.79142897,121580.0,121570.0,0.00585911]
[1759866201937,2.27703231,121580.0,121570.0,0.00585911]
[1759866202150,1.50068631,121580.0,121570.0,0.00585911]
[1759866202367,2.27703231,121580.0,121570.0,0.00585911]
[1759866202574,1.50068631,121580.0,121570.0,0.00585911]
[1759866202788,2.27703231,121580.0,121570.0,0.00585911]
[1759866202994,2.22583431,121580.0,121570.0,0.00585911]
[1759866203199,1.50068631,121580.0,121570.0,0.00585911]
[1759866203405,2.35416931,121580.0,121570.0,0.00585911]
[1759866203648,2.55436931,121580.0,121570.0,0.00585911]
[1759866203881,2.34682131,121580.0,121570.0,0.00585911]
[1759866204049,2.54833431,121580.0,121570.0,0.00585911]
[1759866204345,2.29423431,121580.0,121570.0,0.00585911]
[1759866204536,2.15492931,121580.0,121570.0,0.00585911]
[1759866204701,1.50068631,121580.0,121570.0,0.00585911]
[1759866204910,2.32254131,121580.0,121570.0,0.00585911]
[1759866205141,1.50068631,121580.0,121570.0,0.00585911]
[1759866205328,2.35620731,121580.0,121570.0,0.00585911]
[1759866205495,1.50068631,121580.0,121570.0,0.00585911]
[1759866205701,3.02296231,121580.0,121570.0,0.00585911]
[1759866205919,1.50068631,121580.0,121570.0,0.00585911]
[1759866206122,2.82273331,121580.0,121570.0,0.00585911]
[1759866206328,2.86912031,121580.0,121570.0,0.00585911]
[1759866206542,2.88275031,121580.0,121570.0,0.00585911]
[1759866206755,3.09869431,121580.0,121570.0,0.00585911]
[1759866206909,1.51381631,121580.0,121570.0,0.00585911]
[1759866207122,3.07886731,121580.0,121570.0,0.00585911]
[1759866207338,3.07845431,121580.0,121570.0,0.00585911]
[1759866207563,3.29007031,121580.0,121570.0,0.00585911]
[1759866207797,1.51481631,121580.0,121570.0,0.00585911]
[1759866208215,3.42735631,121580.0,121570.0,0.00585911]
[1759866208414,1.51581631,121580.0,121570.0,0.00585911]
[1759866208933,3.38140931,121580.0,121570.0,0.00585911]
[1759866209132,3.38267231,121580.0,121570.0,0.00585911]
[1759866209330,3.42753431,121580.0,121570.0,0.00585911]
[1759866209595,3.31685831,121580.0,121570.0,0.00585911]
[1759866209850,3.32906831,121580.0,121570.0,0.00585911]
[1759866210057,3.38264231,121580.0,121570.0,0.00585911]
[1759866210317,3.38441531,121580.0,121570.0,0.00585911]
[1759866210532,3.29285731,121580.0,121570.0,0.00585911]
[1759866210718,3.29215331,121580.0,121570.0,0.00585911]
[1759866210933,1.51581631,121580.0,121570.0,0.00585911]
[1759866211088,3.33631931,121580.0,121570.0,0.00585911]
[1759866211292,3.38440331,121580.0,121570.0,0.00585911]
[1759866211612,3.33175331,121580.0,121570.0,0.00585911]
[1759866211794,1.51581631,121580.0,121570.0,0.00585911]
[1759866211943,3.48615431,121580.0,121570.0,0.00585911]
[1759866212136,3.47171231,121580.0,121570.0,0.00585911]
[1759866212368,1.51581631,121580.0,121570.0,0.00585911]
[1759866212775,3.29970731,121580.0,121570.0,0.00585911]
[1759866213020,1.51581631,121580.0,121570.0,0.00585911]
[1759866213171,4.48925135,121580.0,121570.0,0.00585911]
[1759866213375,4.49375835,121580.0,121570.0,0.00585911]
[1759866213580,2.73587235,121580.0,121570.0,0.00585911]
[1759866213879,4.61958335,121580.0,121570.0,0.00585911]
[1759866214099,4.61901435,121580.0,121570.0,0.00585911]
[1759866214299,4.34458735,121580.0,121570.0,0.00585911]
[1759866214545,2.73583235,121580.0,121570.0,0.00585911]
[1759866214743,4.61578735,121580.0,121570.0,0.00585911]
[1759866214973,4.91779435,121580.0,121570.0,0.00585911]
[1759866215105,4.57177235,121580.0,121570.0,0.00585911]
[1759866215362,2.73583235,121580.0,121570.0,0.00585911]
[1759866215574,4.56539435,121580.0,121570.0,0.00585911]
[1759866215857,4.55316335,121580.0,121570.0,0.00585911]
[1759866216042,4.56507135,121580.0,121570.0,0.00585911]
[1759866216183,4.57878935,121580.0,121570.0,0.00585911]
[1759866216396,2.73583235,121580.0,121570.0,0.00585911]
[1759866216791,4.37230535,121580.0,121570.0,0.00585911]
[1759866216996,2.73583235,121580.0,121570.0,0.00585911]
[1759866217201,4.41872335,121580.0,121570.0,0.00585911]
[1759866217402,4.42012435,121580.0,121570.0,0.00585911]
[1759866217640,2.73583235,121580.0,121570.0,0.00585911]
[1759866217853,4.55735935,121580.0,121570.0,0.00585911]
[1759866218056,2.73583235,121580.0,121570.0,0.00585911]
[1759866218256,5.16428435,121580.0,121570.0,0.00585911]
[1759866218455,5.43840335,121580.0,121570.0,0.00585911]
[1759866218654,2.73583235,121580.0,121570.0,0.00585911]
[1759866218868,5.02424235,121580.0,121570.0,0.00585911]
[1759866219080,4.94914035,121580.0,121570.0,0.00585911]
[1759866219455,2.73583235,121580.0,121570.0,0.00585911]
[1759866219663,4.48871835,121580.0,121570.0,0.00585911]
[1759866219860,2.73583235,121580.0,121570.0,0.00585911]
[1759866220084,5.05257335,121580.0,121570.0,0.00585911]
[1759866220545,2.73583235,121580.0,121570.0,0.00585911]
[1759866220861,5.05257335,121580.0,121570.0,0.00585911]
[1759866221176,4.91451135,121580.0,121570.0,0.00585911]
[1759866221307,2.73583235,121580.0,121570.0,0.00585911]
[1759866221504,4.91451135,121580.0,121570.0,0.00585911]
[1759866222057,2.41763235,121580.0,121570.0,0.00585911]
[1759866222283,1.45894797,121580.0,121570.0,0.00585911]
[1759866222490,2.35616589,121580.0,121570.0,0.00585911]
[1759866222721,2.09943389,121580.0,121570.0,0.00585911]
[1759866222945,2.43476689,121580.0,121570.0,0.00585911]
[1759866223156,3.89480735,121580.0,121570.0,0.00585911]
[1759866223383,2.72264235,121580.0,121570.0,0.00585911]
[1759866223597,3.92288935,121580.0,121570.0,0.00585911]
[1759866223809,3.60425135,121580.0,121570.0,0.00585911]
[1759866224024,2.72264235,121580.0,121570.0,0.00585911]
[1759866224256,4.23188635,121580.0,121570.0,0.00585911]
[1759866224497,4.02313535,121580.0,121570.0,0.00585911]
[1759866224729,3.41785035,121580.0,121570.0,0.00585911]
[1759866224957,2.73588235,121580.0,121570.0,0.00585911]
[1759866225153,5.46381635,121580.0,121570.0,0.00585911]
[1759866225402,5.27862635,121580.0,121570.0,0.00585911]
[1759866225627,5.41737135,121580.0,121570.0,0.00585911]
[1759866225852,2.73388235,121580.0,121570.0,0.00585911]
[1759866226076,5.28771235,121580.0,121570.0,0.00585911]
[1759866226295,5.23363335,121580.0,121570.0,0.00585911]
[1759866226542,5.62081935,121580.0,121570.0,0.00585911]
[1759866226814,5.25114149,121580.0,121570.0,0.00585911]
[1759866226989,2.75330849,121580.0,121570.0,0.00585911]
[1759866227191,4.93681049,121580.0,121570.0,0.00585911]
[1759866227406,5.15245049,121580.0,121570.0,0.00585911]
[1759866228070,2.75330849,121580.0,121570.0,0.00585911]
[1759866228751,4.58367387,121580.0,121570.0,0.00585911]
[1759866228955,9.63024411,121580.0,121570.0,0.00585911]
[1759866229180,4.63024411,121580.0,121570.0,0.00585911]
[1759866229388,9.60915957,121580.0,121570.0,0.00585911]
[1759866229595,4.60915957,121580.0,121570.0,0.00585911]
[1759866229799,9.60915957,121580.0,121570.0,0.00585911]
[1759866230219,9.65856957,121580.0,121570.0,0.00585911]
[1759866230469,9.31723,121580.0,121570.0,0.00585911]
[1759866230672,5.00083478,121580.0,121570.0,0.00585911]
[1759866230905,10.00083478,121580.0,121570.0,0.00585911]
[1759866231109,5.00083478,121580.0,121570.0,0.00585911]
[1759866231329,10.00083478,121580.0,121570.0,0.00585911]
[1759866231953,5.00083478,121580.0,121570.0,0.00585911]
[1759866232578,10.00083478,121580.0,121570.0,0.00585911]
[1759866233204,9.7942736,121580.0,121570.0,0.00585911]
[1759866233757,9.77650133,121580.0,121570.0,0.00585911]
[1759866233979,9.79425066,121580.0,121570.0,0.00585911]
[1759866234238,4.79425066,121580.0,121570.0,0.00585911]
[1759866234445,9.77650133,121580.0,121570.0,0.00585911]
[1759866234856,4.77650133,121580.0,121570.0,0.00585911]
[1759866235158,5.11650133,121580.0,121570.0,0.00585911]
[1759866235353,9.45602133,121580.0,121570.0,0.00585911]
[1759866235580,10.11658133,121580.0,121570.0,0.00585911]
[1759866235779,9.45600828,121580.0,121570.0,0.00585911]
[1759866235978,5.11590954,121580.0,121570.0,0.00585911]
[1759866236142,10.11590301,121580.0,121570.0,0.00585911]
[1759866236346,5.11590301,121580.0,121570.0,0.00585911]
[1759866236561,10.11590301,121580.0,121570.0,0.00585911]
[1759866238042,5.11590301,121580.0,121570.0,0.00585911]
[1759866238212,10.11590301,121580.0,121570.0,0.00585911]
[1759866238657,10.12390301,121580.0,121570.0,0.00609519]
[1759866239220,5.12390301,121580.0,121570.0,0.00609519]
[1759866239428,10.12390301,121580.0,121570.0,0.00609519]
[1759866240462,9.46334301,121580.0,121570.0,0.00609519]
[1759866240696,4.46334301,121580.0,121570.0,0.00609519]
[1759866240905,9.46334301,121580.0,121570.0,0.00609519]
[1759866241111,10.12390301,121580.0,121570.0,0.00609519]
[1759866241620,10.11590301,121580.0,121570.0,0.00609519]
[1759866241940,5.11590301,121580.0,121570.0,0.00609519]
[1759866242130,10.11590301,121580.0,121570.0,0.00609519]
[1759866242380,5.11590301,121580.0,121570.0,0.00609519]
[1759866242638,10.11590301,121580.0,121570.0,0.00609519]
[1759866243385,9.24376693,121570.0,121560.0,0.000124]
[1759866243613,9.57545246,121570.0,121560.0,0.000124]
[1759866243842,7.82772611,121570.0,121560.0,0.000124]
[1759866244059,7.85244311,121570.0,121560.0,0.00089357]
[1759866244285,2.86890311,121570.0,121560.0,0.00089357]
[1759866244509,9.69874849,121570.0,121560.0,0.00089357]
[1759866245015,9.70474849,121570.0,121560.0,0.00089357]
[1759866245752,10.13266849,121570.0,121560.0,0.00089357]
[1759866246448,5.13266849,121570.0,121560.0,0.00089357]
[1759866246708,3.30282311,121570.0,121560.0,0.00089357]
[1759866246932,7.64226311,121570.0,121560.0,0.00089357]
[1759866247157,8.30282311,121570.0,121560.0,0.00089357]
[1759866247865,3.30282311,121570.0,121560.0,0.00089357]
[1759866248295,8.30282311,121570.0,121560.0,0.00089357]
[1759866248557,10.13266849,121570.0,121560.0,0.00089357]
[1759866249200,10.13729303,121570.0,121560.0,0.00089357]
[1759866249423,4.25889541,121560.0,121550.0,0.0001]
[1759866249660,9.59833018,121560.0,121550.0,0.0001]
[1759866249873,0.1645955,121510.0,121500.0,0.07926503]
[1759866250081,1.02950396,121510.0,121500.0,0.10019503]
[1759866250285,1.02950396,121510.0,121500.0,0.1032778]
[1759866250925,1.02950396,121510.0,121500.0,0.03708277]
[1759866251161,1.6395026,121510.0,121500.0,0.00308277]
[1759866251392,1.6782726,121510.0,121500.0,0.01408277]
[1759866251650,1.6782726,121510.0,121500.0,0.01708277]
[1759866251651,2.13154656,121510.0,121500.0,0.01708277]
[1759866251925,2.37692656,121510.0,121500.0,0.01708277]
[1759866252216,3.00011502,121510.0,121500.0,0.01708277]
[1759866252419,2.41489234,121510.0,121500.0,0.01708277]
[1759866252648,4.51100242,121510.0,121500.0,0.01708277]
[1759866252862,5.79591234,121510.0,121500.0,0.01408277]
[1759866253068,1.93687234,121510.0,121500.0,0.01708277]
[1759866253277,5.78571034,121510.0,121500.0,0.01708277]
[1759866253513,5.80108327,121510.0,121500.0,0.00308277]
[1759866253707,1.95224527,121510.0,121500.0,0.00508277]
[1759866253924,2.27148527,121510.0,121500.0,0.00508277]
[1759866254136,3.90040427,121510.0,121500.0,0.00508277]
[1759866254364,4.12774127,121510.0,121500.0,0.00508277]
[1759866254534,2.17264527,121510.0,121500.0,0.00508277]
[1759866254763,3.83903427,121510.0,121500.0,0.00508277]
[1759866254967,4.21919213,121510.0,121500.0,0.00508277]
[1759866255122,4.19729913,121510.0,121500.0,0.00508277]
[1759866255532,4.25728113,121510.0,121500.0,0.00508277]
[1759866255738,4.23622613,121510.0,121500.0,0.00508277]
[1759866255950,4.25079013,121510.0,121500.0,0.00508277]
[1759866256171,4.19900913,121510.0,121500.0,0.00508277]
[1759866256402,4.24198317,121510.0,121500.0,0.00508277]
[1759866256621,4.22756313,121510.0,121500.0,0.00508277]
[1759866256849,3.81100813,121510.0,121500.0,0.00508277]
[1759866257095,4.03082513,121510.0,121500.0,0.00508277]
[1759866257369,2.26662839,121510.0,121500.0,0.00508277]
[1759866257559,4.22568293,121510.0,121500.0,0.00508277]
[1759866257833,4.44420213,121510.0,121500.0,0.00508277]
[1759866258033,4.71786113,121510.0,121500.0,0.00508277]
[1759866258232,4.41929913,121510.0,121500.0,0.00508277]
[1759866258384,2.26483913,121510.0,121500.0,0.00508277]
[1759866258582,4.68954132,121510.0,121500.0,0.00508277]
[1759866258786,2.22633332,121510.0,121500.0,0.00508277]
[1759866258991,4.33153232,121510.0,121500.0,0.00508277]
[1759866259198,4.94010078,121510.0,121500.0,0.00508277]
[1759866259406,6.52803378,121510.0,121500.0,0.00508277]
[1759866259614,0.9938864,121510.0,121500.0,0.00508277]
[1759866259825,5.34383832,121510.0,121500.0,0.00508277]
[1759866260038,5.34220432,121510.0,121500.0,0.00508277]
[1759866260245,5.33512332,121510.0,121500.0,0.00508277]
[1759866260458,5.05400232,121510.0,121500.0,0.00508277]
[1759866260881,2.21378332,121510.0,121500.0,0.00508277]
[1759866261087,5.05812232,121510.0,121500.0,0.00508277]
[1759866261494,4.51552932,121510.0,121500.0,0.00508277]
[1759866261696,4.15217532,121510.0,121500.0,0.00508277]
[1759866261902,2.21382332,121510.0,121500.0,0.00508277]
[1759866262346,2.12822332,121510.0,121500.0,0.00508277]
[1759866262520,4.78588832,121510.0,121500.0,0.00508277]
[1759866262739,2.21382332,121510.0,121500.0,0.00508277]
[1759866262942,4.73457332,121510.0,121500.0,0.00508277]
[1759866263118,2.21382332,121510.0,121500.0,0.00508277]
[1759866263326,4.80988332,121510.0,121500.0,0.00508277]
[1759866263751,4.81743132,121510.0,121500.0,0.00508277]
[1759866263974,4.82095532,121510.0,121500.0,0.00508277]
[1759866264129,4.80484732,121510.0,121500.0,0.00508277]
[1759866264345,2.21382332,121510.0,121500.0,0.00508277]
[1759866264553,4.81770232,121510.0,121500.0,0.00508277]
[1759866264756,2.21382332,121510.0,121500.0,0.00508277]
[1759866265009,7.88118178,121510.0,121500.0,0.00508277]
[1759866265580,2.88118178,121510.0,121500.0,0.00508277]
[1759866265790,7.88118178,121510.0,121500.0,0.00508277]
[1759866266001,2.88118178,121510.0,121500.0,0.00508277]
[1759866266222,7.88118178,121510.0,121500.0,0.00508277]
[1759866266648,2.88118178,121510.0,121500.0,0.00508277]
[1759866266870,7.55490178,121510.0,121500.0,0.00508277]
[1759866267069,8.21566178,121510.0,121500.0,0.00508277]
[1759866267218,3.21566178,121510.0,121500.0,0.00508277]
[1759866267421,7.78758178,121510.0,121500.0,0.00508277]
[1759866267623,3.21566178,121510.0,121500.0,0.00508277]
[1759866267830,8.21566178,121510.0,121500.0,0.00508277]
[1759866269437,3.21566178,121510.0,121500.0,0.00508277]
[1759866269646,8.21566178,121510.0,121500.0,0.00508277]
[1759866269849,3.21566178,121510.0,121500.0,0.00508277]
[1759866270067,8.21566178,121510.0,121500.0,0.00508277]
[1759866270690,3.21566178,121510.0,121500.0,0.00508277]
[1759866270842,8.21566178,121510.0,121500.0,0.00508277]
[1759866271693,3.21566178,121510.0,121500.0,0.00508277]
[1759866271899,8.22366178,121510.0,121500.0,0.00508277]
[1759866273283,3.22366178,121510.0,121500.0,0.00508277]
[1759866273487,8.22366178,121510.0,121500.0,0.00508277]
[1759866273689,3.22366178,121510.0,121500.0,0.00508277]
[1759866273938,8.22366178,121510.0,121500.0,0.00508277]
[1759866274164,8.13810178,121510.0,121500.0,0.00508277]
[1759866274383,3.22370178,121510.0,121500.0,0.00508277]
[1759866274834,8.22370178,121510.0,121500.0,0.00508277]
[1759866275043,3.22370178,121510.0,121500.0,0.00508277]
[1759866275250,7.61558054,121510.0,121500.0,0.00508277]
[1759866275486,2.61558054,121510.0,121500.0,0.00508277]
[1759866275637,7.61558054,121510.0,121500.0,0.00508277]
[1759866276531,2.61558054,121510.0,121500.0,0.00508277]
[1759866276761,7.61558054,121510.0,121500.0,0.00508277]
[1759866277396,2.61558054,121510.0,121500.0,0.00508277]
[1759866277628,7.61558054,121510.0,121500.0,0.00508277]
[1759866278091,7.61558054,121510.0,121500.0,1e-08]
[1759866278092,8.22644261,121510.0,121500.0,1e-08]
[1759866278310,3.27294531,121510.0,121500.0,1e-08]
[1759866278526,8.27294531,121510.0,121500.0,1e-08]
[1759866278751,8.25084632,121510.0,121500.0,1e-08]
[1759866279035,0.5347745,121490.0,121480.0,0.0054]
[1759866279243,6.57589228,121490.0,121480.0,0.0054]
[1759866279454,6.58330728,121490.0,121480.0,0.0054]
[1759866279662,2.11241834,121490.0,121480.0,0.00642801]
[1759866280030,6.52690834,121490.0,121480.0,0.00642801]
[1759866280226,2.11241834,121490.0,121480.0,0.00642801]
[1759866280413,6.60890834,121490.0,121480.0,0.00642801]
[1759866280616,6.59493634,121490.0,121480.0,0.00642801]
[1759866280843,6.61976734,121490.0,121480.0,0.00642801]
[1759866281039,2.11241834,121490.0,121480.0,0.00642801]
[1759866281243,2.11541834,121490.0,121480.0,0.00642801]
[1759866281576,6.40791034,121490.0,121480.0,0.00642801]
[1759866281720,2.11541834,121490.0,121480.0,0.00642801]